bitfinex-derivatives/quotes_SOLF0:USTF0_20240924
["timestamp","ask_amount","ask_price","bid_price","bid_amount"]
[1727162781580,12.8412,146.58,146.57,4.5474003]
[1727162781581,9.43,146.58,146.57,4.5474003]
[1727162782077,9.43,146.58,146.57,2.3842003]
[1727162782078,12.8412,146.58,146.57,2.3842003]
[1727162783182,3.4112,146.58,146.57,2.3842003]
[1727162783480,12.8412,146.58,146.57,2.3842003]
[1727162784086,12.8412,146.58,146.55,3.4119]
[1727162786684,12.8412,146.58,146.52,9.43]
[1727162787391,12.8412,146.58,146.55,3.4117]
[1727162788000,9.43,146.58,146.56,3.4117]
[1727162788183,3.4111,146.59,146.56,3.4117]
[1727162788386,12.8411,146.59,146.56,3.4117]
[1727162789283,9.43,146.59,146.57,3.4115]
[1727162789483,3.4109,146.6,146.54,9.43]
[1727162789484,9.43,146.6,146.54,9.43]
[1727162790089,9.43,146.6,146.57,3.4113]
[1727162790491,9.43,146.6,146.54,9.43]
[1727162790695,9.43,146.6,146.56,9.43]
[1727162791499,9.43,146.61,146.57,9.43]
[1727162792592,9.43,146.6,146.58,3.4112]
[1727162793296,9.43,146.59,146.57,3.4113]
[1727162794294,9.43,146.58,146.55,3.4118]
[1727162794793,9.43,146.56,146.54,3.412]
[1727162795895,9.43,146.55,146.53,3.4123]
[1727162796491,9.43,146.55,146.52,3.4125]
[1727162796694,9.43,146.54,146.51,6.60868046]
[1727162796897,9.43,146.54,146.5,12.1146]
[1727162797195,9.43,146.54,146.51,3.4127]
[1727162797794,3.4121,146.55,146.51,3.4127]
[1727162797795,9.43,146.52,146.51,3.4127]
[1727162800195,9.43,146.53,146.51,3.4127]
[1727162801403,1.3741,146.62,146.49,6.60934739]
[1727162801605,9.43,146.54,146.49,6.60934739]
[1727162802404,9.43,146.54,146.51,3.4127]
[1727162807812,9.43,146.54,146.52,3.4126]
[1727162812708,9.43,146.54,146.53,3.4124]
[1727162812907,3.4116,146.57,146.53,3.4124]
[1727162812908,9.43,146.55,146.53,3.4124]
[1727162813613,9.43,146.55,146.52,3.4126]
[1727162815215,3.4117,146.56,146.53,3.4123]
[1727162815411,9.43,146.55,146.53,3.4123]
[1727162817616,9.43,146.55,146.52,3.4125]
[1727162818912,1.3741,146.62,146.53,3.4124]
[1727162819111,1.3741,146.62,146.55,9.43]
[1727162819317,9.43,146.61,146.55,9.43]
[1727162819511,9.43,146.61,146.56,9.43]
[1727162820526,9.43,146.61,146.58,3.4111]
[1727162822315,9.43,146.6,146.58,3.4111]
[1727162822720,9.43,146.59,146.56,3.4115]
[1727162823526,12.841,146.59,146.55,3.4118]
[1727162827130,9.43,146.57,146.54,3.4121]
[1727162829020,9.43,146.58,146.53,9.43]
[1727162829226,3.4111,146.59,146.53,9.43]
[1727162829525,3.4111,146.59,146.55,12.8418]
[1727162830723,3.4111,146.59,146.56,3.4117]
[1727162831630,12.8411,146.59,146.56,3.4117]
[1727162849746,3.4112,146.58,146.55,3.4118]
[1727162859044,12.8412,146.58,146.55,3.4118]
[1727162860448,12.8412,146.58,146.54,3.4121]
[1727162860849,3.4115,146.57,146.54,3.4121]
[1727162861048,12.8415,146.57,146.54,3.4121]
[1727162861250,12.8415,146.57,146.53,3.4123]
[1727162863057,9.43,146.59,146.54,9.43]
[1727162863757,9.43,146.58,146.53,9.43]
[1727162864152,3.4115,146.57,146.54,3.412]
[1727162864654,9.43,146.56,146.53,3.4122]
[1727162864845,12.8417,146.56,146.53,3.4122]
[1727162865946,9.43,146.56,146.53,3.4122]
[1727162866454,1.3741,146.62,146.54,9.43]
[1727162866762,9.43,146.61,146.56,9.43]
[1727162867557,3.411,146.59,146.56,12.8415]
[1727162868958,3.4109,146.6,146.57,3.4114]
[1727162872160,1.3741,146.62,146.57,9.43]
[1727162872651,1.3741,146.62,146.59,3.4109]
[1727162872652,4.7845,146.62,146.59,3.4109]
[1727162873864,9.43,146.61,146.58,3.4112]
[1727162875863,3.4108,146.6,146.58,3.4112]
[1727162876365,3.4114,146.58,146.5,2.7861]
[1727162876566,12.8414,146.58,146.53,9.43]
[1727162876965,12.8414,146.58,146.55,3.4118]
[1727162877364,3.4116,146.57,146.53,9.43]
[1727162877560,3.4116,146.57,146.54,3.4121]
[1727162879359,3.4117,146.56,146.53,3.4123]
[1727162879565,12.8417,146.56,146.53,3.4123]
[1727162887684,12.8417,146.56,146.52,3.4125]
[1727162891782,3.412,146.55,146.51,12.8428]
[1727162891984,12.842,146.55,146.51,12.8428]
[1727162893180,3.4118,146.56,146.51,9.43]
[1727162893380,9.43,146.57,146.52,9.43]
[1727162894287,12.8415,146.57,146.53,3.4122]
[1727162894687,9.43,146.57,146.53,3.4122]
[1727162894887,3.4117,146.56,146.53,3.4122]
[1727162896692,12.8417,146.56,146.53,3.4122]
[1727162897093,3.4119,146.55,146.53,3.4122]
[1727162898397,9.43,146.54,146.44,6.8287]
[1727162898693,9.43,146.5,146.45,9.43310533]
[1727162898995,9.43,146.48,146.46,10.03710533]
[1727162899197,9.43,146.49,146.45,1.4415]
[1727162899395,9.43,146.49,146.45,4.68181847]
[1727162899690,12.8435,146.49,146.45,8.09581847]
[1727162899885,9.43,146.49,146.44,12.89490531]
[1727162900090,9.43,146.49,146.44,9.43]
[1727162900995,12.8434,146.49,146.45,3.4141]
[1727162901192,9.43,146.49,146.44,9.43]
[1727162901397,9.43,146.46,146.41,1.4415]
[1727162901599,12.8441,146.46,146.41,1.4415]
[1727162902493,9.43,146.44,146.41,1.4415]
[1727162902695,9.43,146.44,146.38,4.67677429]
[1727162902895,9.43,146.44,146.38,14.10677429]
[1727162903095,9.43,146.44,146.4,3.4154]
[1727162903998,9.43,146.43,146.4,3.4154]
[1727162904891,12.8447,146.43,146.39,3.4156]
[1727162905300,1.311,146.51,146.38,3.4158]
[1727162905301,12.845,146.42,146.38,3.4158]
[1727162905491,9.43,146.41,146.38,3.4158]
[1727162905901,12.845,146.42,146.38,3.4158]
[1727162906886,9.43,146.39,146.36,3.4162]
[1727162907087,9.43,146.39,146.33,9.43]
[1727162907292,4.029,146.44,146.36,9.43]
[1727162907495,9.43,146.41,146.36,9.43]
[1727162908101,2.6922,146.44,146.37,9.43]
[1727162908302,9.43,146.45,146.39,9.43]
[1727162908696,12.8444,146.45,146.39,9.43]
[1727162910102,12.8444,146.45,146.41,3.4152]
[1727162910494,9.43,146.44,146.41,3.4152]
[1727162913704,12.8445,146.44,146.36,2.807]
[1727162913899,9.43,146.44,146.36,2.807]
[1727162914100,9.43,146.44,146.38,9.43]
[1727162914401,12.8449,146.43,146.39,3.4155]
[1727162914605,9.43,146.41,146.36,2.807]
[1727162914796,12.8452,146.41,146.37,3.416]
[1727162915403,12.8455,146.4,146.36,14.249]
[1727162915609,9.43,146.39,146.36,3.4163]
[1727162915800,9.43,146.39,146.34,68.67401614]
[1727162916300,9.43,146.37,146.31,2.7162]
[1727162916497,9.43,146.37,146.31,12.1462]
[1727162916701,9.43,146.37,146.31,2.7162]
[1727162916904,9.43,146.37,146.32,9.43]
[1727162917297,9.43,146.37,146.31,2.7162]
[1727162917507,9.43,146.37,146.33,3.4169]
[1727162917908,9.43,146.36,146.31,2.7162]
[1727162918203,9.43,146.36,146.32,3.4171]
[1727162919399,3.4166,146.35,146.31,3.4175]
[1727162919600,9.43,146.34,146.28,9.43]
[1727162919806,9.43,146.33,146.27,3.33583153]
[1727162920105,12.8471,146.33,146.29,3.4179]
[1727162920504,9.43,146.33,146.29,3.4179]
[1727162920812,9.43,146.33,146.3,3.4177]
[1727162921007,1.3489,146.36,146.28,9.43]
[1727162921305,10.7789,146.36,146.31,9.43]
[1727162921605,1.3489,146.36,146.31,9.43]
[1727162921994,9.43,146.37,146.32,9.43]
[1727162922195,9.43,146.38,146.32,9.43]
[1727162922602,9.43,146.38,146.35,3.4164]
[1727162922803,9.43,146.38,146.32,9.43]
[1727162923103,9.43,146.4,146.37,3.416]
[1727162923505,1.3489,146.43,146.38,9.43]
[1727162923702,67.0,146.51,146.38,9.43]
[1727162923907,9.43,146.44,146.38,9.43]
[1727162924807,12.8445,146.44,146.41,3.415]
[1727162926710,9.43,146.43,146.41,3.415]
[1727162929916,9.43,146.43,146.4,3.4153]
[1727162931105,12.8447,146.43,146.4,3.4153]
[1727162934618,12.845,146.42,146.39,3.4155]
[1727162936011,9.43,146.4,146.32,6.23519872]
[1727162936315,9.43,146.39,146.34,9.43]
[1727162936616,9.43,146.38,146.32,6.23519872]
[1727162936814,9.43,146.38,146.32,2.7918]
[1727162937008,9.43,146.36,146.32,1.3695]
[1727162937605,9.43,146.36,146.33,3.417]
[1727162938509,9.43,146.39,146.34,9.43]
[1727162939218,12.8458,146.39,146.35,3.4164]
[1727162940214,12.8458,146.39,146.36,3.4163]
[1727162941010,3.4159,146.38,146.35,3.4165]
[1727162941816,9.43,146.39,146.36,3.4163]
[1727162941817,12.8457,146.39,146.36,3.4163]
[1727162943218,6.094,146.4,146.37,3.4161]
[1727162943521,9.43,146.43,146.38,9.43]
[1727162944220,3.4152,146.41,146.38,3.4158]
[1727162944614,9.43,146.43,146.37,9.43]
[1727162944813,3.415,146.42,146.39,3.4155]
[1727162951814,9.43,146.4,146.38,3.4158]
[1727162952130,9.43,146.4,146.35,9.43]
[1727162952318,12.8456,146.4,146.37,3.4161]
[1727162956232,3.4156,146.4,146.37,3.4161]
[1727162956422,12.8456,146.4,146.37,3.4161]
[1727162956619,3.4157,146.39,146.36,3.4163]
[1727162959028,12.8455,146.4,146.36,3.4163]
[1727162959626,3.4157,146.39,146.36,3.4163]
[1727162960232,12.8457,146.39,146.36,3.4163]
[1727162960737,9.43,146.37,146.33,9.43]
[1727162961032,9.43,146.37,146.32,10.7995]
[1727162961826,9.43,146.37,146.34,3.4167]
[1727162964337,9.43,146.36,146.32,1.3695]
[1727162964534,9.43,146.36,146.26,1.3185]
[1727162964535,9.43,146.36,146.3,81.54078767]
[1727162964839,9.43,146.33,146.28,9.43]
[1727162965228,12.8472,146.33,146.29,3.4179]
[1727162965837,12.8472,146.33,146.28,9.43]
[1727162966133,3.4173,146.32,146.29,3.4179]
[1727162966338,12.8473,146.32,146.29,3.4179]
[1727162966835,12.8473,146.32,146.28,3.4181]
[1727162970237,3.4173,146.32,146.29,3.4179]
[1727162970433,12.8473,146.32,146.27,1.3157]
[1727162970842,9.43,146.31,146.28,3.4181]
[1727162973239,3.4173,146.32,146.29,3.418]
[1727162973441,3.4173,146.32,146.27,10.7457]
[1727162973442,12.8471,146.33,146.27,10.7457]
[1727162973643,1.344,146.34,146.27,10.7457]
[1727162973847,1.344,146.34,146.31,3.4174]
[1727162973848,10.774,146.34,146.31,3.4174]
[1727162974138,1.3554,146.37,146.3,9.43]
[1727162974139,12.8466,146.35,146.3,9.43]
[1727162974531,9.43,146.35,146.32,3.4172]
[1727162975733,4.7716,146.37,146.3,9.43]
[1727162975936,89.53603426,146.38,146.33,9.43]
[1727162976135,80.10603426,146.38,146.33,9.43]
[1727162976340,89.53603426,146.38,146.35,3.4164]
[1727162977243,89.53603426,146.38,146.33,9.43]
[1727162977635,80.10603426,146.38,146.34,9.43]
[1727162977840,10.7464,146.4,146.36,9.43]
[1727162978436,10.7464,146.4,146.37,3.416]
[1727162978640,10.7464,146.4,146.36,9.43]
[1727162979246,14.162,146.4,146.36,12.8462]
[1727162980253,9.43,146.41,146.36,9.43]
[1727162980448,10.8652,146.42,146.37,9.43]
[1727162981846,3.4152,146.41,146.38,3.4158]
[1727162983548,14.2802,146.42,146.39,3.4156]
[1727162984751,3.4153,146.41,146.38,3.4158]
[1727162985851,12.8453,146.41,146.38,3.4158]
[1727162987752,14.2802,146.42,146.39,3.4156]
[1727162989450,12.8452,146.41,146.38,3.4159]
[1727162994351,3.4154,146.4,146.38,3.4159]
[1727162995552,3.4148,146.43,146.4,3.4153]
[1727162995752,9.43,146.43,146.38,9.43]
[1727162996753,3.415,146.42,146.39,3.4155]
[1727163000155,12.8449,146.43,146.4,3.4153]
[1727163000351,9.43,146.44,146.38,9.43]
[1727163000552,1.4318,146.45,146.41,9.43]
[1727163000758,1.4318,146.45,146.42,3.4149]
[1727163000759,4.8462,146.45,146.42,3.4149]
[1727163000958,1.4318,146.45,146.42,3.4149]
[1727163001155,9.43,146.43,146.38,9.43]
[1727163001357,12.8448,146.43,146.4,3.4153]
[1727163002456,9.43,146.43,146.41,3.4152]
[1727163002656,1.3609,146.5,146.42,9.43]
[1727163002858,9.43,146.46,146.42,9.43]
[1727163003057,3.4144,146.45,146.42,3.4148]
[1727163003255,9.43,146.45,146.37,10.02044559]
[1727163003562,9.43,146.45,146.39,9.43]
[1727163003868,9.43,146.45,146.41,3.4151]
[1727163004259,12.8444,146.45,146.41,3.4151]
[1727163005267,3.4145,146.44,146.41,3.4151]
[1727163005764,12.8445,146.44,146.41,3.4151]
[1727163006469,3.415,146.43,146.39,12.8456]
[1727163006661,3.415,146.43,146.39,9.43]
[1727163007567,3.4151,146.42,146.39,9.43]
[1727163008265,12.8448,146.43,146.39,12.8455]
[1727163008666,3.4148,146.43,146.39,12.8455]
[1727163008964,12.8448,146.43,146.39,12.8455]
[1727163009466,3.4145,146.44,146.41,3.4152]
[1727163009764,9.43,146.45,146.41,3.4152]
[1727163009963,3.4144,146.45,146.41,9.43]
[1727163011254,3.4144,146.45,146.42,3.4148]
[1727163011858,12.8441,146.46,146.43,3.4147]
[1727163012657,12.8439,146.47,146.42,9.43]
[1727163013463,3.4136,146.48,146.42,9.43]
[1727163013667,3.4136,146.48,146.43,9.43]
[1727163013871,3.4136,146.48,146.44,9.43]
[1727163014072,3.4136,146.48,146.45,3.4141]
[1727163014267,4.8341,146.49,146.44,9.43]
[1727163014461,3.4135,146.49,146.44,9.43]
[1727163014663,3.4135,146.49,146.46,3.4139]
[1727163016168,3.4136,146.48,146.46,3.4139]
[1727163016367,3.4136,146.48,146.45,3.4141]
[1727163017368,3.4138,146.47,146.44,3.4144]
[1727163017567,9.43,146.48,146.44,3.4144]
[1727163019665,9.43,146.46,146.4,2.7171]
[1727163019865,9.43,146.46,146.4,12.1471]
[1727163020071,3.4144,146.45,146.42,3.4148]
[1727163024776,9.43,146.46,146.42,3.4148]
[1727163024777,12.8441,146.46,146.42,3.4148]
[1727163025075,12.8441,146.46,146.43,3.4147]
[1727163025878,3.4138,146.47,146.44,3.4145]
[1727163026672,3.414,146.46,146.43,3.4146]
[1727163027472,9.43,146.47,146.42,3.4149]
[1727163027473,3.4143,146.45,146.42,3.4149]
[1727163027676,12.8443,146.45,146.42,3.4149]
[1727163029276,9.43,146.45,146.42,3.4149]
[1727163029578,9.43,146.45,146.43,3.4146]
[1727163029776,9.43,146.45,146.41,9.43]
[1727163030081,9.43,146.44,146.39,9.43]
[1727163030681,3.4147,146.43,146.4,3.4153]
[1727163031373,9.43,146.41,146.36,71.42667882]
[1727163031581,9.43,146.41,146.36,80.85667882]
[1727163032085,101.86771686,146.51,146.39,9.43]
[1727163032086,81.34771686,146.51,146.39,9.43]
[1727163032282,9.43,146.44,146.39,9.43]
[1727163032581,12.8446,146.44,146.4,3.4152]
[1727163033086,81.34771686,146.51,146.38,9.43]
[1727163033087,9.43,146.43,146.38,9.43]
[1727163034286,3.415,146.42,146.38,3.4159]
[1727163034878,3.415,146.42,146.39,3.4156]
[1727163036685,12.8448,146.43,146.38,9.43]
[1727163037986,12.8448,146.43,146.4,3.4153]
[1727163040297,12.8448,146.43,146.36,2.7623]
[1727163040298,81.34771686,146.51,146.41,9.43]
[1727163040597,9.43,146.46,146.41,9.43]
[1727163040782,3.4143,146.45,146.42,3.4148]
[1727163043082,3.4146,146.44,146.42,3.4148]
[1727163048585,9.43,146.43,146.36,4.1317]
[1727163048787,101.86771686,146.51,146.37,9.43]
[1727163048788,9.43,146.42,146.37,9.43]
[1727163049293,12.8451,146.42,146.39,3.4155]
[1727163051194,9.43,146.41,146.36,1.4239]
[1727163051488,9.43,146.39,146.35,9.43]
[1727163051686,9.43,146.39,146.36,3.4162]
[1727163051992,9.43,146.38,146.29,4.2704]
[1727163052191,9.43,146.37,146.31,9.43]
[1727163052493,3.4164,146.36,146.33,3.417]
[1727163053293,12.8462,146.37,146.33,3.417]
[1727163054391,12.8462,146.37,146.34,3.4168]
[1727163055794,12.8462,146.37,146.31,9.43]
[1727163057095,12.8462,146.37,146.33,3.4169]
[1727163057883,12.8462,146.37,146.34,3.4168]
[1727163058484,3.416,146.38,146.34,3.4168]
[1727163058691,2.6173,146.42,146.33,9.43]
[1727163058893,9.43,146.39,146.33,9.43]
[1727163059493,9.43,146.39,146.37,3.4161]
[1727163060296,9.43,146.39,146.38,3.4159]
[1727163060897,9.43,146.39,146.37,3.416]
[1727163062902,12.8457,146.39,146.37,3.416]
[1727163063091,12.8457,146.39,146.36,3.4163]
[1727163063602,9.43,146.37,146.36,3.4163]
[1727163063906,9.43,146.37,146.35,3.4164]
[1727163064201,9.43,146.36,146.35,3.4164]
[1727163069511,9.43,146.37,146.35,3.4164]
[1727163073215,2.6173,146.42,146.34,9.43]
[1727163073517,9.43,146.39,146.34,9.43]
[1727163073916,9.43,146.39,146.36,3.4161]
[1727163074316,9.43,146.39,146.34,9.43]
[1727163075220,9.43,146.38,146.33,9.43]
[1727163075922,9.43,146.38,146.37,3.416]
[1727163076927,9.43,146.38,146.29,12.48788565]
[1727163077119,9.43,146.32,146.28,1.4337]
[1727163078121,9.43,146.32,146.31,3.4175]
[1727163081732,9.43,146.32,146.3,3.4177]
[1727163082618,9.43,146.31,146.26,9.43]
[1727163082823,9.43,146.29,146.24,13.01926484]
[1727163083132,9.43,146.29,146.27,3.4185]
[1727163084031,12.848,146.29,146.25,3.4189]
[1727163084335,9.43,146.28,146.25,3.4189]
[1727163084725,9.43,146.28,146.26,3.4187]
[1727163084930,9.43,146.29,146.26,3.4187]
[1727163085433,3.4178,146.3,146.26,3.4187]
[1727163085434,9.43,146.28,146.26,3.4187]
[1727163086230,3.9978,146.31,146.25,9.43]
[1727163086429,12.1218,146.31,146.26,9.43]
[1727163086830,9.43,146.3,146.28,3.418]
[1727163087030,9.43,146.3,146.25,9.43]
[1727163087432,9.43,146.3,146.27,3.4183]
[1727163089530,3.4182,146.29,146.24,10.256]
[1727163089730,9.43,146.27,146.24,6.837]
[1727163090741,9.43,146.27,146.25,3.4189]
[1727163090942,9.43,146.28,146.24,6.837]
[1727163091138,2.6918,146.31,146.26,3.4185]
[1727163091139,3.4178,146.3,146.26,3.4185]
[1727163091341,9.43,146.28,146.26,3.4185]
[1727163091744,9.43,146.28,146.25,3.4188]
[1727163093347,9.43,146.27,146.22,9.43]
[1727163094751,9.43,146.27,146.23,9.43]
[1727163095640,3.4179,146.3,146.23,9.43]
[1727163095944,9.43,146.28,146.23,9.43]
[1727163096733,9.43,146.28,146.26,3.4185]
[1727163097639,9.43,146.27,146.25,3.4189]
[1727163099349,9.43,146.27,146.24,3.4191]
[1727163099744,9.43,146.27,146.22,9.43]
[1727163100153,12.8485,146.27,146.22,9.43]
[1727163100349,9.43,146.26,146.22,9.43]
[1727163100648,9.43,146.26,146.23,3.4194]
[1727163101044,9.43,146.26,146.22,9.43]
[1727163101649,9.43,146.26,146.23,3.4193]
[1727163102153,9.43,146.24,146.19,2.7701]
[1727163102343,9.43,146.23,146.22,3.4195]
[1727163104143,9.43,146.23,146.2,3.42]
[1727163104342,9.43,146.21,146.2,3.42]
[1727163105845,9.43,146.21,146.13,2.8198]
[1727163106154,9.43,146.18,146.14,3.40870096]
[1727163106455,9.43,146.21,146.16,9.43]
[1727163106846,9.43,146.21,146.18,3.4205]
[1727163107251,9.43,146.21,146.16,9.43]
[1727163107751,2.73,146.23,146.17,9.43]
[1727163108054,10.8057,146.23,146.18,9.43]
[1727163108255,9.43,146.22,146.17,9.43]
[1727163108756,9.43,146.22,146.16,3.40392596]
[1727163109055,9.43,146.22,146.16,9.43]
[1727163109255,2.7786,146.31,146.19,9.43]
[1727163109456,1.3878,146.3,146.2,9.43]
[1727163109649,9.43,146.26,146.2,9.43]
[1727163110744,9.43,146.26,146.23,3.4192]
[1727163110950,9.43,146.25,146.23,3.4192]
[1727163115159,12.8489,146.25,146.22,3.4196]
[1727163115568,9.43,146.25,146.22,3.4196]
[1727163115766,9.43,146.25,146.2,9.43]
[1727163116355,9.43,146.25,146.22,3.4195]
[1727163119562,12.8489,146.25,146.22,3.4195]
[1727163120064,9.43,146.25,146.22,3.4195]
[1727163120369,3.39571383,146.29,146.21,9.43]
[1727163120564,1.3878,146.3,146.21,9.43]
[1727163120565,9.43,146.26,146.21,9.43]
[1727163121373,3.4186,146.27,146.21,9.43]
[1727163121670,9.43,146.26,146.21,9.43]
[1727163122269,6.82311407,146.28,146.24,3.419]
[1727163122465,1.3878,146.3,146.24,9.43]
[1727163122767,9.43,146.28,146.23,9.43]
[1727163122964,9.43,146.28,146.25,3.4187]
[1727163123366,9.43,146.27,146.24,3.419]
[1727163123961,9.43,146.26,146.23,3.4193]
[1727163125768,9.43,146.24,146.19,2.6304]
[1727163125963,9.43,146.23,146.19,1.3098]
[1727163126269,9.43,146.23,146.16,1.4438]
[1727163126270,9.43,146.23,146.17,9.43]
[1727163127068,9.43,146.23,146.2,3.42]
[1727163127274,9.43,146.22,146.2,3.42]
[1727163127771,9.43,146.21,146.15,3.39251505]
[1727163127969,9.43,146.19,146.14,12.80643678]
[1727163128271,9.43,146.19,146.14,9.43]
[1727163128659,9.43,146.19,146.14,12.86390804]
[1727163128863,9.43,146.19,146.17,3.4206]
[1727163133968,4.91122194,146.23,146.18,3.4205]
[1727163134170,9.43,146.2,146.16,9.43]
[1727163134478,1.4325,146.23,146.18,9.43]
[1727163134681,10.8625,146.23,146.18,9.43]
[1727163134975,3.46164771,146.28,146.23,3.4193]
[1727163135172,92.68293039,146.52,146.23,3.4193]
[1727163135173,9.43,146.25,146.23,3.4193]
[1727163137875,9.43,146.28,146.23,9.43]
[1727163138473,9.43,146.27,146.23,9.43]
[1727163138665,9.43,146.27,146.21,9.43]
[1727163139273,12.8485,146.27,146.23,3.4192]
[1727163139469,9.43,146.25,146.23,3.4192]
[1727163139680,4.8175,146.3,146.26,3.4185]
[1727163139875,9.43,146.28,146.23,9.43]
[1727163140074,1.3997,146.3,146.23,9.43]
[1727163140273,9.43,146.28,146.23,9.43]
[1727163140473,1.3997,146.3,146.23,9.43]
[1727163140676,9.43,146.28,146.23,9.43]
[1727163141172,9.43,146.28,146.19,4.0402]
[1727163141378,9.43,146.28,146.23,9.43]
[1727163141769,12.8482,146.28,146.23,9.43]
[1727163142170,12.8482,146.28,146.19,4.0402]
[1727163142374,9.43,146.27,146.21,9.43]
[1727163142680,12.8486,146.27,146.21,9.43]
[1727163143873,3.4186,146.27,146.23,3.4192]
[1727163144074,9.43,146.26,146.23,3.4192]
[1727163145174,9.43,146.25,146.19,12.1626]
[1727163145678,9.43,146.25,146.19,10.7458]
[1727163145879,3.4193,146.24,146.2,3.42]
[1727163146474,12.8494,146.23,146.2,3.42]
[1727163147078,9.43,146.22,146.19,3.4203]
[1727163147680,12.8498,146.22,146.18,3.4205]
[1727163148376,9.43,146.2,146.18,3.4205]
[1727163148578,9.43,146.2,146.17,3.4206]
[1727163150883,12.8501,146.2,146.16,3.421]
[1727163151277,9.43,146.19,146.16,3.421]
[1727163151879,3.4199,146.21,146.17,3.4207]
[1727163152079,3.4199,146.21,146.15,9.43]
[1727163152080,9.43,146.21,146.15,9.43]
[1727163152883,9.43,146.21,146.18,3.4204]
[1727163153587,12.8499,146.21,146.17,3.4207]
[1727163154088,12.8499,146.21,146.18,3.4205]
[1727163156794,3.4201,146.2,146.17,3.4207]
[1727163156986,3.4201,146.2,146.15,9.43]
[1727163157188,12.8501,146.2,146.15,9.43]
[1727163158792,12.8501,146.2,146.17,3.4206]
[1727163162091,12.8499,146.21,146.17,3.4206]
[1727163163294,1.3268,146.23,146.16,9.43]
[1727163163496,9.43,146.23,146.18,9.43]
[1727163164196,9.43,146.22,146.16,9.43]
[1727163164893,3.4199,146.21,146.18,3.4204]
[1727163165592,4.8299,146.24,146.18,9.43]
[1727163165794,14.2599,146.24,146.19,9.43]
[1727163166188,12.8494,146.23,146.19,3.4201]
[1727163166389,9.43,146.22,146.19,3.4201]
[1727163166589,1.4107,146.24,146.16,1.4156]
[1727163166590,9.43,146.2,146.16,1.4156]
[1727163166794,9.43,146.2,146.17,3.4206]
[1727163167898,12.8501,146.2,146.17,3.4206]
[1727163168501,12.8501,146.2,146.16,14.2665]
[1727163168896,12.8501,146.2,146.16,12.8509]
[1727163169304,12.8503,146.19,146.15,3.4212]
[1727163174500,3.4206,146.18,146.14,14.2774]
[1727163175494,3.4206,146.18,146.15,3.4212]
[1727163176104,3.4206,146.18,146.14,14.2775]
[1727163176308,12.8506,146.18,146.14,12.8515]
[1727163177013,12.8506,146.18,146.11,1.3409]
[1727163177014,12.8508,146.17,146.13,3.4216]
[1727163177217,9.43,146.17,146.13,3.4216]
[1727163178103,12.8509,146.17,146.13,3.4216]
[1727163178306,9.43,146.17,146.12,3.4219]